[Event "Championnat d'Europe de Blitz"]
[Date "2024.12.09"]
[White "Tsolakidou, Stavroula"]
[Black "Costachi, Mihnea"]
[WhiteElo "2451"]
[BlackElo "2464"]
[Round "7.37"]
[Result "0-1"]
[TimeControl "180+2"]

1. e4 {[%emt 00:00:01] [%clk 00:03:02]} e5 {[%emt 00:00:02] [%clk 00:03:03]} 2.
Nf3 {[%emt 00:00:03] [%clk 00:03:02]} Nf6 {[%emt 00:00:02] [%clk 00:03:02]} 3.
d4 {[%emt 00:00:02] [%clk 00:03:01]} Nxe4 {[%emt 00:00:02] [%clk 00:03:02]} 4.
Bd3 {[%emt 00:00:01] [%clk 00:03:01]} d5 {[%emt 00:00:02] [%clk 00:03:03]} 5.
Nxe5 {[%emt 00:00:02] [%clk 00:03:01]} Nd7 {[%emt 00:00:02] [%clk 00:03:03]} 6.
Nc3 {[%emt 00:00:02] [%clk 00:03:01]} Nxc3 {[%emt 00:00:05] [%clk 00:03:01]} 7.
bxc3 {[%emt 00:00:01] [%clk 00:03:01]} Nxe5 {[%emt 00:00:02] [%clk 00:03:01]} 8.
dxe5 {[%emt 00:00:02] [%clk 00:03:01]} Be7 {[%emt 00:00:07] [%clk 00:02:57]} 9.
O-O {[%emt 00:00:03] [%clk 00:02:59]} O-O {[%emt 00:00:05] [%clk 00:02:54]} 10.
Qh5 {[%emt 00:00:12] [%clk 00:02:49]} g6 {[%emt 00:00:02] [%clk 00:02:54]} 11.
Qe2 {[%emt 00:00:37] [%clk 00:02:14]} Re8 {[%emt 00:00:07] [%clk 00:02:50]} 12.
f4 {[%emt 00:00:16] [%clk 00:01:59]} f5 {[%emt 00:00:16] [%clk 00:02:36]} 13.
Be3 {[%emt 00:00:06] [%clk 00:01:55]} Be6 {[%emt 00:00:07] [%clk 00:02:32]} 14.
h3 {[%emt 00:00:19] [%clk 00:01:38]} c5 {[%emt 00:00:03] [%clk 00:02:30]} 15. c4
{[%emt 00:00:01] [%clk 00:01:38]} d4 {[%emt 00:00:07] [%clk 00:02:26]} 16. Bd2
{[%emt 00:00:03] [%clk 00:01:36]} Rf8 {[%emt 00:00:07] [%clk 00:02:21]} 17. Kh1
{[%emt 00:00:36] [%clk 00:01:02]} Qd7 {[%emt 00:00:01] [%clk 00:02:23]} 18. a4
{[%emt 00:00:03] [%clk 00:01:02]} Kh8 {[%emt 00:00:19] [%clk 00:02:05]} 19. Rg1
{[%emt 00:00:10] [%clk 00:00:53]} b6 {[%emt 00:00:03] [%clk 00:02:05]} 20. g4
{[%emt 00:00:07] [%clk 00:00:48]} a6 {[%emt 00:00:02] [%clk 00:02:05]} 21. g5
{[%emt 00:00:10] [%clk 00:00:40]} Rab8 {[%emt 00:00:23] [%clk 00:01:44]} 22. Kh2
{[%emt 00:00:04] [%clk 00:00:37]} Qc7 {[%emt 00:00:11] [%clk 00:01:36]} 23. h4
{[%emt 00:00:08] [%clk 00:00:31]} b5 {[%emt 00:00:02] [%clk 00:01:36]} 24. axb5
{[%emt 00:00:06] [%clk 00:00:27]} axb5 {[%clk 00:01:37]} 25. h5 {[%emt 00:00:02]
[%clk 00:00:26]} Kg7 {[%emt 00:00:10] [%clk 00:01:29]} 26. Kg3 {[%emt 00:00:02]
[%clk 00:00:26]} Rh8 {[%emt 00:00:04] [%clk 00:01:27]} 27. Rh1 {[%emt 00:00:01]
[%clk 00:00:27]} h6 {[%emt 00:00:02] [%clk 00:01:27]} 28. gxh6+ {[%emt 00:00:04]
[%clk 00:00:24]} Rxh6 {[%emt 00:00:01] [%clk 00:01:28]} 29. hxg6 {[%emt
00:00:03] [%clk 00:00:23]} Rxg6+ {[%emt 00:00:05] [%clk 00:01:25]} 30. Kf2
{[%emt 00:00:01] [%clk 00:00:24]} Rg8 {[%emt 00:00:41] [%clk 00:00:47]} 31. Rh2
{[%emt 00:00:14] [%clk 00:00:12]} Kf8 {[%emt 00:00:14] [%clk 00:00:35]} 32. Ra8+
{[%emt 00:00:02] [%clk 00:00:12]} Bd8 {[%clk 00:00:37]} 33. Qh5 {[%emt 00:00:05]
[%clk 00:00:08]} Qd7 {[%emt 00:00:22] [%clk 00:00:17]} 34. Bxf5 {[%emt 00:00:04]
[%clk 00:00:06]} Bxf5 {[%emt 00:00:01] [%clk 00:00:17]} 35. Rxd8+ {[%emt
00:00:01] [%clk 00:00:07]} Qxd8 {[%emt 00:00:03] [%clk 00:00:17]} 36. Qxf5+
{[%emt 00:00:01] [%clk 00:00:07]} Ke8 {[%emt 00:00:04] [%clk 00:00:15]} 37. Rh7
{[%emt 00:00:05] [%clk 00:00:04]} Rg2+ {[%emt 00:00:07] [%clk 00:00:10]} 38. Kf1
{[%emt 00:00:02] [%clk 00:00:04]} Rg1+ {[%clk 00:00:11]} 39. Ke2 {[%emt
00:00:02] [%clk 00:00:04]} R8g2+ {[%emt 00:00:06] [%clk 00:00:07]} 40. Kf3
{[%emt 00:00:04] [%clk 00:00:03]} Qa8+ {[%emt 00:00:03] [%clk 00:00:06]} 0-1

[Site "Europe Echecs"]

[Event "Championnat d'Europe de Blitz"]
[Date "2024.12.09"]
[White "Dragnev, Valentin"]
[Black "Radovanovic, Dusan"]
[WhiteElo "2563"]
[BlackElo "2274"]
[Round "7.38"]
[Result "1-0"]
[TimeControl "180+2"]

1. e4 {[%clk 00:03:04]} c5 {[%emt 00:00:02] [%clk 00:03:02]} 2. Nf3 {[%emt
00:00:03] [%clk 00:03:04]} d6 {[%clk 00:03:03]} 3. Bb5+ {[%emt 00:00:01] [%clk
00:03:04]} Bd7 {[%clk 00:03:04]} 4. Bxd7+ {[%emt 00:00:02] [%clk 00:03:05]} Qxd7
{[%clk 00:03:05]} 5. O-O {[%emt 00:00:07] [%clk 00:03:01]} Nc6 {[%clk 00:03:06]}
6. c3 {[%emt 00:00:19] [%clk 00:02:43]} d5 {[%emt 00:00:02] [%clk 00:03:06]} 7.
d3 {[%emt 00:00:08] [%clk 00:02:37]} dxe4 {[%emt 00:00:06] [%clk 00:03:02]} 8.
dxe4 {[%clk 00:02:38]} Qxd1 {[%emt 00:00:02] [%clk 00:03:02]} 9. Rxd1 {[%emt
00:00:01] [%clk 00:02:40]} e6 {[%emt 00:00:11] [%clk 00:02:53]} 10. Na3 {[%emt
00:00:02] [%clk 00:02:40]} Rd8 {[%emt 00:00:16] [%clk 00:02:38]} 11. Be3 {[%emt
00:00:10] [%clk 00:02:31]} Rxd1+ {[%emt 00:00:10] [%clk 00:02:31]} 12. Rxd1
{[%clk 00:02:33]} Nf6 {[%emt 00:00:02] [%clk 00:02:32]} 13. Nb5 {[%emt 00:00:28]
[%clk 00:02:06]} Nd7 {[%emt 00:01:02] [%clk 00:01:32]} 14. Ng5 {[%emt 00:00:19]
[%clk 00:01:49]} h6 {[%emt 00:00:23] [%clk 00:01:11]} 15. Nxf7 {[%emt 00:00:05]
[%clk 00:01:47]} Kxf7 {[%emt 00:00:14] [%clk 00:00:59]} 16. Rxd7+ {[%emt
00:00:01] [%clk 00:01:47]} Kf6 {[%emt 00:00:08] [%clk 00:00:53]} 17. Rxb7 {[%emt
00:00:12] [%clk 00:01:38]} Be7 {[%emt 00:00:08] [%clk 00:00:47]} 18. Nxa7 {[%emt
00:00:09] [%clk 00:01:30]} Rd8 {[%emt 00:00:08] [%clk 00:00:42]} 19. h4 {[%emt
00:00:23] [%clk 00:01:10]} Ne5 {[%emt 00:00:01] [%clk 00:00:42]} 20. f3 {[%emt
00:00:25] [%clk 00:00:47]} Nc4 {[%emt 00:00:02] [%clk 00:00:42]} 21. Bf4 {[%emt
00:00:09] [%clk 00:00:39]} Rd1+ {[%emt 00:00:06] [%clk 00:00:39]} 22. Kh2 {[%emt
00:00:01] [%clk 00:00:40]} e5 {[%emt 00:00:04] [%clk 00:00:37]} 23. Bg3 {[%emt
00:00:10] [%clk 00:00:32]} Rd2 {[%emt 00:00:02] [%clk 00:00:38]} 24. Nc6 {[%emt
00:00:04] [%clk 00:00:29]} Bd6 {[%emt 00:00:10] [%clk 00:00:30]} 25. Kg1 {[%emt
00:00:05] [%clk 00:00:26]} Ne3 {[%emt 00:00:16] [%clk 00:00:16]} 26. Bf2 {[%emt
00:00:02] [%clk 00:00:25]} Nd1 {[%emt 00:00:02] [%clk 00:00:17]} 27. Be1 {[%emt
00:00:06] [%clk 00:00:21]} Re2 {[%emt 00:00:02] [%clk 00:00:18]} 28. Kf1 {[%emt
00:00:03] [%clk 00:00:19]} Rc2 {[%emt 00:00:01] [%clk 00:00:19]} 29. Kg1 {[%emt
00:00:09] [%clk 00:00:12]} Ne3 {[%emt 00:00:02] [%clk 00:00:19]} 30. Bf2 {[%emt
00:00:03] [%clk 00:00:11]} Nd1 {[%clk 00:00:21]} 31. Be1 {[%emt 00:00:05] [%clk
00:00:08]} Ne3 {[%clk 00:00:22]} 32. h5 {[%emt 00:00:04] [%clk 00:00:06]} Rxg2+
{[%emt 00:00:02] [%clk 00:00:22]} 33. Kh1 {[%clk 00:00:08]} Re2 {[%emt 00:00:05]
[%clk 00:00:18]} 34. Bh4+ {[%emt 00:00:01] [%clk 00:00:08]} Ke6 {[%emt 00:00:01]
[%clk 00:00:19]} 35. Nd8# {[%emt 00:00:01] [%clk 00:00:00]}

[Site "Europe Echecs"]

[Event "Championnat d'Europe de Blitz"]
[Date "2024.12.09"]
[White "Vyval, Volodymyr"]
[Black "Boyer, Mahel"]
[WhiteElo "2269"]
[BlackElo "2526"]
[Round "7.39"]
[Result "0-1"]
[TimeControl "180+2"]

1. Nf3 {[%clk 00:03:03]} g6 {[%emt 00:00:02] [%clk 00:03:02]} 2. g3 {[%emt
00:00:03] [%clk 00:03:05]} Bg7 {[%clk 00:03:03]} 3. Bg2 {[%clk 00:03:06]} c5
{[%clk 00:03:04]} 4. O-O {[%emt 00:00:02] [%clk 00:03:06]} Nc6 {[%emt 00:00:01]
[%clk 00:03:05]} 5. c4 {[%emt 00:00:17] [%clk 00:02:50]} e6 {[%emt 00:00:04]
[%clk 00:03:02]} 6. Nc3 {[%emt 00:00:01] [%clk 00:02:51]} Nge7 {[%emt 00:00:06]
[%clk 00:02:58]} 7. e3 {[%clk 00:02:52]} O-O {[%emt 00:00:02] [%clk 00:02:58]}
8. d4 {[%emt 00:00:01] [%clk 00:02:53]} b6 {[%emt 00:00:06] [%clk 00:02:54]} 9.
d5 {[%emt 00:00:13] [%clk 00:02:42]} Na5 {[%emt 00:00:03] [%clk 00:02:53]} 10.
Nd2 {[%emt 00:00:47] [%clk 00:01:57]} Ba6 {[%emt 00:00:01] [%clk 00:02:54]} 11.
dxe6 {[%emt 00:00:06] [%clk 00:01:53]} dxe6 {[%emt 00:00:02] [%clk 00:02:55]}
12. Bxa8 {[%emt 00:00:03] [%clk 00:01:52]} Qxa8 {[%emt 00:00:01] [%clk
00:02:55]} 13. Qe2 {[%emt 00:00:15] [%clk 00:01:39]} Nf5 {[%emt 00:00:13] [%clk
00:02:44]} 14. Nb5 {[%emt 00:00:07] [%clk 00:01:34]} Qc6 {[%emt 00:00:30] [%clk
00:02:16]} 15. a4 {[%emt 00:00:08] [%clk 00:01:28]} Bb7 {[%emt 00:00:04] [%clk
00:02:14]} 16. f3 {[%emt 00:00:04] [%clk 00:01:26]} a6 {[%emt 00:00:01] [%clk
00:02:15]} 17. Nc3 {[%emt 00:00:06] [%clk 00:01:21]} Nxe3 {[%emt 00:00:02] [%clk
00:02:15]} 18. Rf2 {[%emt 00:00:24] [%clk 00:00:59]} Ng4 {[%emt 00:00:01] [%clk
00:02:16]} 19. Qe4 {[%emt 00:00:18] [%clk 00:00:43]} Nxf2 {[%emt 00:00:09] [%clk
00:02:09]} 20. Qxc6 {[%emt 00:00:04] [%clk 00:00:41]} Nh3+ {[%emt 00:00:05]
[%clk 00:02:06]} 21. Kg2 {[%emt 00:00:04] [%clk 00:00:39]} Bxc6 {[%emt 00:00:02]
[%clk 00:02:07]} 22. Kxh3 {[%emt 00:00:02] [%clk 00:00:39]} Rd8 {[%clk
00:02:08]} 23. Rb1 {[%emt 00:00:16] [%clk 00:00:26]} Rd3 {[%emt 00:00:10] [%clk
00:02:00]} 24. Kg2 {[%emt 00:00:10] [%clk 00:00:17]} f5 {[%clk 00:02:01]} 25.
Kf2 {[%emt 00:00:02] [%clk 00:00:17]} Bd4+ {[%emt 00:00:04] [%clk 00:01:59]} 26.
Ke2 {[%emt 00:00:08]} Re3+ {[%clk 00:01:58]} 27. Kd1 {[%emt 00:00:03] [%clk
00:00:14]} Bxf3+ {[%emt 00:00:19] [%clk 00:01:41]} 28. Nxf3 {[%emt 00:00:01]
[%clk 00:00:15]} Rxf3 {[%clk 00:01:42]} 29. Ne2 {[%emt 00:00:11] [%clk
00:00:06]} Nxc4 {[%emt 00:00:28] [%clk 00:01:15]} 30. Nxd4 {[%emt 00:00:02]
[%clk 00:00:07]} cxd4 {[%clk 00:01:17]} 31. b3 {[%emt 00:00:04] [%clk 00:00:05]}
Ne3+ {[%emt 00:00:09] [%clk 00:01:10]} 32. Bxe3 {[%emt 00:00:02] [%clk
00:00:05]} Rf1+ {[%emt 00:00:03] [%clk 00:01:08]} 0-1

[Site "Europe Echecs"]

[Event "Championnat d'Europe de Blitz"]
[Date "2024.12.09"]
[White "Cvitan, Ognjen"]
[Black "Dinev, Dejan"]
[WhiteElo "2413"]
[BlackElo "2209"]
[Round "7.40"]
[Result "1-0"]
[TimeControl "180+2"]

1. d4 {[%emt 02:47:06] [%clk 00:03:03]} d5 {[%emt 00:00:06] [%clk 00:02:59]} 2.
c4 {[%emt 00:00:01] [%clk 00:03:04]} c6 {[%clk 00:03:00]} 3. Nf3 {[%emt
00:00:01] [%clk 00:03:04]} Nf6 {[%emt 00:00:01] [%clk 00:03:01]} 4. Nc3 {[%emt
00:00:02] [%clk 00:03:04]} g6 {[%emt 00:00:03] [%clk 00:03:01]} 5. e3 {[%emt
00:00:04] [%clk 00:03:02]} Bg7 {[%emt 00:00:01] [%clk 00:03:01]} 6. Be2 {[%emt
00:00:03]} O-O {[%clk 00:03:01]} 7. O-O {[%emt 00:00:02] [%clk 00:03:03]} Nbd7
{[%emt 00:00:11] [%clk 00:02:52]} 8. cxd5 {[%emt 00:00:01] [%clk 00:03:04]} Nxd5
{[%emt 00:00:04] [%clk 00:02:50]} 9. Nxd5 {[%emt 00:00:08] [%clk 00:02:58]} cxd5
{[%emt 00:00:02] [%clk 00:02:50]} 10. Qb3 {[%emt 00:00:03] [%clk 00:02:57]} Nf6
{[%emt 00:00:32] [%clk 00:02:20]} 11. Bd2 {[%emt 00:00:10] [%clk 00:02:49]} Ne4
{[%emt 00:00:05] [%clk 00:02:17]} 12. Bb4 {[%emt 00:00:06] [%clk 00:02:45]} a5
{[%emt 00:00:05] [%clk 00:02:15]} 13. Ba3 {[%emt 00:00:01] [%clk 00:02:44]} a4
{[%emt 00:00:06] [%clk 00:02:12]} 14. Qb4 {[%emt 00:00:06] [%clk 00:02:40]} Nd6
{[%emt 00:00:10] [%clk 00:02:04]} 15. Rfc1 {[%emt 00:00:04] [%clk 00:02:38]} Bd7
{[%emt 00:00:02] [%clk 00:02:04]} 16. Ne5 {[%emt 00:00:16] [%clk 00:02:24]} Be8
{[%emt 00:00:02] [%clk 00:02:05]} 17. Qc5 {[%emt 00:00:18] [%clk 00:02:08]} Ra5
{[%emt 00:00:11] [%clk 00:01:55]} 18. Qc7 {[%emt 00:00:01] [%clk 00:02:09]} Qxc7
{[%emt 00:00:28] [%clk 00:01:29]} 19. Rxc7 {[%emt 00:00:01] [%clk 00:02:10]} Bb5
{[%emt 00:00:01] [%clk 00:01:30]} 20. Rxe7 {[%emt 00:00:44] [%clk 00:01:27]} Nf5
{[%emt 00:00:07] [%clk 00:01:25]} 21. Bxb5 {[%emt 00:00:03] [%clk 00:01:27]}
Rxb5 {[%emt 00:00:18] [%clk 00:01:09]} 22. Rc7 {[%emt 00:00:06] [%clk 00:01:22]}
Bxe5 {[%emt 00:00:07] [%clk 00:01:04]} 23. dxe5 {[%clk 00:01:24]} Re8 {[%clk
00:01:06]} 24. g4 {[%emt 00:00:29] [%clk 00:00:56]} Nh4 {[%emt 00:00:01] [%clk
00:01:06]} 25. f4 {[%emt 00:00:07] [%clk 00:00:51]} d4 {[%emt 00:00:09] [%clk
00:00:59]} 26. exd4 {[%emt 00:00:29] [%clk 00:00:24]} Nf3+ {[%clk 00:01:00]} 27.
Kf2 {[%emt 00:00:01] [%clk 00:00:25]} Nxd4 {[%clk 00:01:02]} 28. Rd1 {[%emt
00:00:03] [%clk 00:00:25]} Ne6 {[%emt 00:00:03] [%clk 00:01:01]} 29. Rc4 {[%clk
00:00:26]} Ra5 {[%emt 00:00:03] [%clk 00:01:00]} 30. Kg3 {[%emt 00:00:01] [%clk
00:00:27]} b5 {[%emt 00:00:02] [%clk 00:01:00]} 31. Rc6 {[%emt 00:00:04] [%clk
00:00:24]} g5 {[%emt 00:00:05] [%clk 00:00:57]} 32. f5 {[%emt 00:00:01] [%clk
00:00:25]} Nf4 {[%clk 00:00:58]} 33. h4 {[%emt 00:00:12] [%clk 00:00:16]} h6
{[%clk 00:00:59]} 34. Rxh6 {[%emt 00:00:02] [%clk 00:00:16]} Rxe5 {[%emt
00:00:13] [%clk 00:00:49]} 35. hxg5 {[%clk 00:00:17]} Ne2+ {[%emt 00:00:03]
[%clk 00:00:48]} 36. Kf3 {[%clk 00:00:19]} b4 {[%emt 00:00:19] [%clk 00:00:31]}
37. Rd8+ {[%emt 00:00:01] [%clk 00:00:19]} Kg7 {[%emt 00:00:04] [%clk 00:00:29]}
38. f6# {[%emt 00:00:02] [%clk 00:00:19]} 1-0

[Site "Europe Echecs"]

[Event "Championnat d'Europe de Blitz"]
[Date "2024.12.09"]
[White "Stankovic, Milos"]
[Black "Zhukovskyi, Oleksandr"]
[WhiteElo "2462"]
[BlackElo "2199"]
[Round "7.41"]
[Result "1-0"]
[TimeControl "180+2"]

1. d4 {[%emt 00:00:02] [%clk 00:03:01]} Nf6 {[%emt 00:00:01] [%clk 00:03:03]} 2.
Nf3 {[%emt 00:00:03] [%clk 00:03:01]} g6 {[%clk 00:03:05]} 3. Nbd2 {[%emt
00:00:01] [%clk 00:03:01]} d5 {[%emt 00:00:04] [%clk 00:03:03]} 4. e3 {[%emt
00:00:01] [%clk 00:03:01]} Bg7 {[%emt 00:00:02] [%clk 00:03:05]} 5. b4 {[%clk
00:03:01]} c6 {[%emt 00:00:06] [%clk 00:03:02]} 6. c4 {[%emt 00:00:10] [%clk
00:02:53]} O-O {[%emt 00:00:04] [%clk 00:03:00]} 7. Be2 {[%emt 00:00:02] [%clk
00:02:52]} Bg4 {[%emt 00:00:12] [%clk 00:02:50]} 8. h3 {[%emt 00:00:08] [%clk
00:02:46]} Bxf3 {[%emt 00:00:04] [%clk 00:02:49]} 9. Nxf3 {[%emt 00:00:06] [%clk
00:02:41]} Ne4 {[%emt 00:00:01] [%clk 00:02:50]} 10. Bb2 {[%emt 00:00:17] [%clk
00:02:26]} Nd7 {[%emt 00:00:12] [%clk 00:02:41]} 11. O-O {[%emt 00:00:05] [%clk
00:02:22]} Nb6 {[%emt 00:00:02] [%clk 00:02:42]} 12. c5 {[%emt 00:00:11] [%clk
00:02:13]} Nd7 {[%emt 00:00:02] [%clk 00:02:42]} 13. Qb3 {[%emt 00:00:46]} a6
{[%clk 00:02:25]} 14. a4 {[%emt 00:00:04] [%clk 00:01:45]} Re8 {[%emt 00:00:08]
[%clk 00:02:19]} 15. Bd3 {[%emt 00:00:05] [%clk 00:01:42]} e5 {[%emt 00:00:09]
[%clk 00:02:12]} 16. Bxe4 {[%emt 00:00:31] [%clk 00:01:13]} dxe4 {[%emt
00:00:01] [%clk 00:02:13]} 17. Nxe5 {[%emt 00:00:06] [%clk 00:01:09]} Nxe5
{[%emt 00:00:04] [%clk 00:02:11]} 18. dxe5 {[%emt 00:00:01] [%clk 00:01:09]}
Bxe5 {[%emt 00:00:10] [%clk 00:02:04]} 19. Rad1 {[%emt 00:00:02] [%clk
00:01:09]} Qf6 {[%emt 00:00:16] [%clk 00:01:50]} 20. Rd6 {[%emt 00:00:08] [%clk
00:01:03]} Qe7 {[%emt 00:00:23] [%clk 00:01:29]} 21. Bxe5 {[%emt 00:00:02] [%clk
00:01:03]} Qxe5 {[%emt 00:00:02] [%clk 00:01:29]} 22. Rfd1 {[%clk 00:01:04]} Re7
{[%emt 00:00:04] [%clk 00:01:26]} 23. Qc4 {[%emt 00:00:09] [%clk 00:00:58]} Rae8
{[%emt 00:00:08] [%clk 00:01:20]} 24. R1d4 {[%emt 00:00:02] [%clk 00:00:58]} Re6
{[%emt 00:00:38] [%clk 00:00:44]} 25. Rd7 {[%emt 00:00:12] [%clk 00:00:48]} R8e7
{[%emt 00:00:03] [%clk 00:00:43]} 26. R7d6 {[%emt 00:00:27] [%clk 00:00:23]} Kg7
{[%emt 00:00:14] [%clk 00:00:31]} 27. a5 {[%emt 00:00:04] [%clk 00:00:22]} Qf5
{[%emt 00:00:07] [%clk 00:00:26]} 28. Qc3 {[%emt 00:00:02] [%clk 00:00:21]} Rf6
{[%emt 00:00:16] [%clk 00:00:11]} 29. Qb2 {[%emt 00:00:07] [%clk 00:00:17]} Qe5
{[%emt 00:00:09] [%clk 00:00:04]} 30. Qc2 {[%emt 00:00:08] [%clk 00:00:11]} Qf5
{[%emt 00:00:02] [%clk 00:00:04]} 31. Rxf6 {[%emt 00:00:02] [%clk 00:00:09]}
Kxf6 {[%emt 00:00:02] [%clk 00:00:04]} 32. Qc3 {[%emt 00:00:01] [%clk 00:00:10]}
Qe5 {[%emt 00:00:01] [%clk 00:00:05]} 33. Rd6+ {[%emt 00:00:01] [%clk 00:00:11]}
Re6 {[%emt 00:00:03] [%clk 00:00:03]} 34. Qxe5+ {[%emt 00:00:01] [%clk
00:00:12]} Kxe5 {[%emt 00:00:04] [%clk 00:00:00]} 35. Rd7 {[%clk 00:03:02]} 1-0

[Site "Europe Echecs"]

[Event "Championnat d'Europe de Blitz"]
[Date "2024.12.09"]
[White "Druckenthaner, Andreas"]
[Black "Krallis, Christos"]
[WhiteElo "2206"]
[BlackElo "2383"]
[Round "7.42"]
[Result "0-1"]
[TimeControl "180+2"]

1. e4 {[%clk 00:03:03]} c5 {[%emt 00:00:05] [%clk 00:03:02]} 2. Nf3 {[%emt
00:00:02] [%clk 00:03:01]} e6 {[%emt 00:00:02] [%clk 00:03:02]} 3. d4 {[%emt
00:00:05] [%clk 00:02:58]} cxd4 {[%emt 00:00:02] [%clk 00:03:01]} 4. Nxd4 {[%emt
00:00:03] [%clk 00:02:58]} Nf6 {[%emt 00:00:02] [%clk 00:03:01]} 5. Nc3 {[%emt
00:00:02] [%clk 00:02:58]} Nc6 {[%emt 00:00:03] [%clk 00:03:00]} 6. a3 {[%emt
00:00:14] [%clk 00:02:46]} Be7 {[%emt 00:00:02] [%clk 00:03:00]} 7. Be3 {[%emt
00:00:05] [%clk 00:02:43]} d6 {[%emt 00:00:09] [%clk 00:02:53]} 8. Bd3 {[%emt
00:00:06] [%clk 00:02:39]} O-O {[%emt 00:00:11] [%clk 00:02:44]} 9. O-O {[%emt
00:00:02] [%clk 00:02:38]} e5 {[%emt 00:00:15] [%clk 00:02:31]} 10. Nxc6 {[%emt
00:00:02] [%clk 00:02:38]} bxc6 {[%emt 00:00:02] [%clk 00:02:31]} 11. Kh1 {[%emt
00:01:09] [%clk 00:01:31]} d5 {[%emt 00:00:09] [%clk 00:02:25]} 12. Bg5 {[%emt
00:00:09] [%clk 00:01:24]} Nxe4 {[%emt 00:00:34] [%clk 00:01:53]} 13. Bxe7
{[%emt 00:00:04] [%clk 00:01:22]} Qxe7 {[%emt 00:00:19] [%clk 00:01:36]} 14.
Nxe4 {[%emt 00:00:05] [%clk 00:01:19]} dxe4 {[%emt 00:00:01] [%clk 00:01:37]}
15. Bxe4 {[%emt 00:00:02] [%clk 00:01:19]} Rb8 {[%emt 00:00:16] [%clk 00:01:23]}
16. b3 {[%emt 00:00:11] [%clk 00:01:10]} Qc5 {[%emt 00:00:04] [%clk 00:01:21]}
17. Qf3 {[%emt 00:00:06] [%clk 00:01:06]} f5 {[%emt 00:00:05] [%clk 00:01:18]}
18. Bd3 {[%emt 00:00:03] [%clk 00:01:05]} e4 {[%emt 00:00:04] [%clk 00:01:16]}
19. Bc4+ {[%emt 00:00:01] [%clk 00:01:06]} Qxc4 {[%emt 00:00:03] [%clk
00:01:14]} 0-1

[Site "Europe Echecs"]

[Event "Championnat d'Europe de Blitz"]
[Date "2024.12.09"]
[White "Horvath, Dominik"]
[Black "Veljanoski, Andrej"]
[WhiteElo "2542"]
[BlackElo "2304"]
[Round "7.43"]
[Result "1-0"]
[TimeControl "180+2"]

1. Nc3 {[%emt 02:45:41]} e5 {[%emt 00:00:10] [%clk 00:02:52]} 2. e4 {[%emt
00:00:02] [%clk 00:03:04]} Nc6 {[%emt 00:00:02] [%clk 00:02:53]} 3. Nf3 {[%emt
00:00:01] [%clk 00:03:04]} Nf6 {[%emt 00:00:02] [%clk 00:02:52]} 4. a4 {[%clk
00:03:05]} d5 {[%emt 00:00:15] [%clk 00:02:41]} 5. Bb5 {[%emt 00:00:02] [%clk
00:03:05]} d4 {[%emt 00:00:58] [%clk 00:01:45]} 6. Ne2 {[%emt 00:00:02] [%clk
00:03:04]} Bd6 {[%emt 00:00:03] [%clk 00:01:44]} 7. Ng3 {[%emt 00:00:03] [%clk
00:03:02]} h6 {[%emt 00:00:08] [%clk 00:01:39]} 8. d3 {[%emt 00:00:02] [%clk
00:03:01]} Be6 {[%emt 00:00:02] [%clk 00:01:40]} 9. Nd2 {[%emt 00:00:07] [%clk
00:02:56]} O-O {[%emt 00:00:27] [%clk 00:01:15]} 10. O-O {[%emt 00:00:03] [%clk
00:02:55]} Ne7 {[%emt 00:00:03] [%clk 00:01:14]} 11. Bc4 {[%emt 00:00:01] [%clk
00:02:55]} Ng6 {[%emt 00:00:15] [%clk 00:01:02]} 12. Nf5 {[%emt 00:00:03] [%clk
00:02:53]} Qd7 {[%emt 00:00:11] [%clk 00:00:54]} 13. Nxd6 {[%emt 00:00:03] [%clk
00:02:52]} cxd6 {[%emt 00:00:10] [%clk 00:00:46]} 14. b3 {[%emt 00:00:03] [%clk
00:02:51]} d5 {[%emt 00:00:02] [%clk 00:00:47]} 15. exd5 {[%emt 00:00:01] [%clk
00:02:51]} Bxd5 {[%clk 00:00:48]} 16. Ba3 {[%emt 00:00:02] [%clk 00:02:51]} Rfe8
{[%emt 00:00:01] [%clk 00:00:49]} 17. Re1 {[%emt 00:00:01] [%clk 00:02:52]} Bxc4
{[%emt 00:00:08] [%clk 00:00:44]} 18. Nxc4 {[%emt 00:00:02]} Re6 {[%emt
00:00:20] [%clk 00:00:26]} 19. a5 {[%clk 00:02:52]} e4 {[%emt 00:00:02] [%clk
00:00:26]} 20. dxe4 {[%emt 00:00:02] [%clk 00:02:52]} Nxe4 {[%clk 00:00:27]} 21.
Bb2 {[%emt 00:00:16] [%clk 00:02:37]} Rd8 {[%emt 00:00:04] [%clk 00:00:26]} 22.
Qg4 {[%emt 00:00:09] [%clk 00:02:30]} Nf6 {[%emt 00:00:03] [%clk 00:00:25]} 23.
Qf3 {[%emt 00:00:04] [%clk 00:02:28]} Rxe1+ {[%emt 00:00:10] [%clk 00:00:17]}
24. Rxe1 {[%clk 00:02:29]} d3 {[%emt 00:00:05] [%clk 00:00:15]} 25. Rd1 {[%emt
00:00:11] [%clk 00:02:18]} Nh4 {[%emt 00:00:11] [%clk 00:00:07]} 26. Qxd3 {[%emt
00:00:03] [%clk 00:02:17]} Qg4 {[%emt 00:00:05] [%clk 00:00:04]} 27. Qxd8+
{[%emt 00:00:04] [%clk 00:02:16]} Kh7 {[%emt 00:00:01] [%clk 00:00:04]} 28. Ne3
{[%emt 00:00:13] [%clk 00:02:06]} Nf3+ {[%emt 00:00:01] [%clk 00:00:05]} 29. Kh1
{[%clk 00:02:07]} Qh5 {[%clk 00:00:07]} 30. gxf3 {[%emt 00:00:07] [%clk
00:02:01]} Qxf3+ {[%emt 00:00:02] [%clk 00:00:07]} 31. Ng2 {[%emt 00:00:01]
[%clk 00:02:02]} Ne4 {[%emt 00:00:05] [%clk 00:00:05]} 32. Qd3 {[%emt 00:00:03]
[%clk 00:02:00]} Qxd1+ {[%emt 00:00:03] [%clk 00:00:04]} 33. Qxd1 {[%emt
00:00:01] [%clk 00:02:01]} Nxf2+ {[%clk 00:00:06]} 34. Kg1 {[%clk 00:02:02]}
Nxd1 {[%emt 00:00:01] [%clk 00:00:06]} 35. Bd4 {[%clk 00:02:03]} 1-0

[Site "Europe Echecs"]